Cogmind - Beta 14 @@@ ROGUE MODE // 2024.12.07 @ 16:15:43 Player: GreenBlaze Result: Destroyed by S-10 Pest with Light Assault Rifle Performance ------------- Evolutions (1) 500 Regions Visited (2) 400 Robots Destroyed (7) 35 Value Destroyed (181) 181 Prototype IDs (2) 40 Alien Tech Used (0) 0 Bonus (0) 0 TOTAL SCORE: 1156 Bonus ------- None Cogmind --------- Core Integrity 0/400 Matter 245/300 Energy 94/125 System Corruption 0% Temperature Cool (0) Movement Rolling (90) Location -9/Materials Parts ------- > --- POWER (1) -------- Light Ion Engine > --- PROPULSION (3) --- Armored Wheel Armored Wheel Armored Wheel > --- UTILITY (3) ------ (None) > --- WEAPON (2) ------- (None) > --- INVENTORY (5) ---- Weapon Shielding Peak State ------------ > --- POWER ------------ Ion Engine > --- PROPULSION ------- Wheel Wheel Wheel > --- UTILITY ---------- Core Shielding Propulsion Shielding Weapon Shielding > --- WEAPON ----------- Welding Torch Welding Torch > --- INVENTORY -------- Ion Engine Weapon Shielding Welding Torch [Rating: 9] Favorites ----------- Power Ion Engine Engine Ion Engine Propulsion Wheel Wheel Wheel Hover Unit Improved Hover Unit Utility Propulsion Shielding Device Tractor Beam Protection Propulsion Shielding Weapon Welding Torch Ballistic Gun Light Assault Rifle Special Weapon Welding Torch Build | -11 -10 -9 ------- Run | Yrd Mat Mat Slots Evolved 2 | . . 2 Power . | . . . Propulsion 1 | . . 1 Utility 1 | . . 1 Weapon . | . . . Parts Attached 22 | 4 7 11 Power 4 | 1 1 2 Engine 4 | 1 1 2 Core . | . . . Reactor . | . . . Propulsion 10 | 2 1 7 Treads . | . . . Leg . | . . . Wheel 7 | 2 1 4 Hover 3 | . . 3 Flight . | . . . Utility 4 | . 3 1 Device 1 | . 1 . Storage . | . . . Processor . | . . . Hackware . | . . . Protection 3 | . 2 1 Artifact . | . . . Weapon 4 | 1 2 1 Energy Gun . | . . . Energy Cannon . | . . . Ballistic Gun 1 | 1 . . Ballistic Cannon . | . . . Launcher . | . . . Special Weapon 3 | . 2 1 Impact Weapon . | . . . Slashing Weapon . | . . . Piercing Weapon . | . . . Special Melee Weapon . | . . . Unidentified Prototypes . | . . . Parts Lost 15 | . 3 12 Power 3 | . 1 2 Propulsion 7 | . 1 6 Utility 1 | . . 1 Weapon 4 | . 1 3 Highest Loss Streak 8 | . 3 8 To Critical Strikes . | . . . Average Slot Usage (%) 79 | . 87 61 Engine 10 | . 11 8 Wheel 24 | . 26 20 Hover 1 | . . 4 Device 2 | . 3 . Protection 20 | . 21 19 Ballistic Gun 2 | . 4 . Special Weapon 15 | . 18 8 Peak Build Rating 9 | 4 7 9 Average Rating 5 | 3 6 6 On Entrance 3 | . 4 7 Naked Turns . | . . . Heaviest Build 10 | 4 9 10 Greatest Support 36 | 20 20 36 Greatest Overweight (x) . | . . . Average Overweight (x) . | . . . Largest Inventory Capacity 5 | 5 5 5 Average Capacity 5 | 5 5 5 Most Carried 5 | 2 5 5 Average Carried 2 | . 3 2 Final Capacity 5 | 5 5 5 Final Carried 5 | 1 5 1 Class Distribution -------------------- 100% | Mutant Dominant Class ---------------- Mutant | -10/Materials Mutant | -9/Materials Resources | -11 -10 -9 ----------- Run | Yrd Mat Mat Matter Collected 319 | 250 29 40 Remotely 17 | . 17 . Salvage Created 142 | 49 53 40 Parts 9 | 2 7 . Haulers Intercepted . | . . . Recyclers Shooed . | . . . Parts Field Recycled . | . . . Retrieved Matter . | . . . Parts Self-Destructed . | . . . Prevented . | . . . Kills | -11 -10 -9 ------- Run | Yrd Mat Mat Combat Hostiles Destroyed 3 | 1 1 1 Guns 1 | 1 . . AOE 1 | . 1 . Classes Destroyed 5 | 1 4 . Worker 1 | . 1 . Builder 1 | . 1 . Tunneler 1 | . 1 . Watcher 1 | . 1 . Grunt 3 | 1 1 1 Best Kill Streak 5 | 1 5 1 Combat Bots Only 1 | 1 1 1 Max Kills in Single Turn 5 | 1 5 1 Gunslinging . | . . . Exploded 1 | . 1 . Melee . | . . . Uniques/NPCs Destroyed . | . . . Combat | -11 -10 -9 -------- Run | Yrd Mat Mat Hostile Shots Fired 154 | 9 4 141 Missed 40 | 1 . 39 Damage Taken 1389 | 88 181 1120 Core 475 | 12 58 405 Absorbed by Shields . | . . . Redirected to Shielding 131 | . 3 128 Core Remaining (%) 83 | 95 72 . Volleys Fired 44 | 10 7 27 Largest 2 | 1 2 2 Hottest 40 | 20 40 40 Shots Fired 62 | 10 11 41 Gun 13 | 10 3 . Cannon . | . . . Launcher . | . . . Special 49 | . 8 41 Kinetic 13 | 10 3 . Thermal 49 | . 8 41 Explosive . | . . . Electromagnetic . | . . . Robot Hit Streak 14 | 4 6 14 Robot Miss Streak 4 | 4 4 3 Penetration Max . | . . . Secondary Targets . | . . . Shots Hit Robots 41 | 5 5 31 Core Hits 17 | 2 4 11 Critical Kills . | . . . Critical Parts Destroyed . | . . . Critical Strikes . | . . . Melee Attacks . | . . . Impact . | . . . Slashing . | . . . Piercing . | . . . Sneak Attacks . | . . . Combat Hostiles . | . . . Follow-up Attacks . | . . . Damage Inflicted 891 | 39 741 111 Guns 56 | 39 17 . Cannons . | . . . Explosions 716 | . 716 . Melee . | . . . Ramming 26 | . . 26 Kinetic 56 | 39 17 . Thermal 809 | . 724 85 Explosive . | . . . Electromagnetic . | . . . Impact . | . . . Slashing . | . . . Piercing . | . . . Highest Corruption . | . . . Average Corruption . | . . . Corruption Purged . | . . . Corruption Blocked . | . . . Overload Shots . | . . . Overflow Damage 334 | . 333 1 Projectiles 1 | . . 1 Explosions 333 | . 333 . Melee . | . . . Knockbacks . | . . . Impact . | . . . Kinetic . | . . . Secondary . | . . . Self-Inflicted Damage 125 | . 112 13 Shots 2 | . 2 . Rammed 4 | . . 4 Targets Rammed 4 | . . 4 Kicked . | . . . Crushed . | . . . Highest Temperature 13 | 6 13 . Average Temperature 7 | 6 9 . Received Heat Transfer 651 | 48 45 558 Siege Activations . | . . . Robots Corrupted . | . . . Combat Hostiles . | . . . Parts Fried . | . . . Impact Corruptions . | . . . Robots Melted 1 | . . 1 Combat Hostiles 1 | . . 1 Parts Melted . | . . . Heat Transferred 1300 | . 525 775 Parts Sabotaged . | . . . Parts Stolen . | . . . Parts Stripped . | . . . Power Chain Reactions . | . . . Alert | -11 -10 -9 ------- Run | Yrd Mat Mat Peak Influence 195 | 20 195 35 Initial 13 | . 13 . Average 59 | . 103 11 Maximum Alert Level . | . . . Low Security (%) 100 | 100 100 100 Level 1 . | . . . Level 2 . | . . . Level 3 . | . . . Level 4 . | . . . Level 5 . | . . . High Security . | . . . Max Security . | . . . Squads Dispatched . | . . . Investigation . | . . . Extermination . | . . . Reinforcement . | . . . Assault . | . . . Garrison . | . . . Intercept . | . . . Searches Triggered . | . . . Construction Impeded . | . . . Haulers Reinforced . | . . . Active Scanning Responses . | . . . Cargo Convoy Interrupts . | . . . Stealth | -11 -10 -9 --------- Run | Yrd Mat Mat Distress Signals 2 | . . 2 Communications Jammed . | . . . Distress Signals . | . . . Times Spotted 19 | 1 8 10 Peak Tracking Total 10 | 1 4 10 Tactical Retreats 2 | . 2 . Traps | -11 -10 -9 ------- Run | Yrd Mat Mat Traps Triggered 1 | . 1 . Indirectly . | . . . Trap Hack Attempts . | . . . Triggered . | . . . Disarmed . | . . . Reprogrammed . | . . . Reused . | . . . Traps Extracted . | . . . Installed . | . . . Triggered . | . . . Machines | -11 -10 -9 ---------- Run | Yrd Mat Mat Machines Disabled 5 | . 5 . Max in Single Turn 5 | . 5 . Machines Repaired . | . . . Machines Dismantled . | . . . Machines Sabotaged . | . . . Overloaded Fab Kills . | . . . Hacking | -11 -10 -9 --------- Run | Yrd Mat Mat Machines Accessed 2 | . 2 . Terminals 1 | . 1 . Fabricators . | . . . Repair Stations . | . . . Recycling Units 1 | . 1 . Scanalyzers . | . . . Garrison Access . | . . . Total Hacks 3 | . 3 . Successful 3 | . 3 . Failed . | . . . Catastrophic . | . . . Database Lockouts . | . . . Manual . | . . . Terminals 2 | . 2 . Fabricators . | . . . Repair Stations . | . . . Recycling Units 1 | . 1 . Scanalyzers . | . . . Garrison Access . | . . . Terminal Hacks 2 | . 2 . Prototype ID Bank 1 | . 1 . Emergency Access Points 1 | . 1 . Fabricator Hacks . | . . . Repair Station Hacks . | . . . Recycling Unit Hacks 1 | . 1 . Recycle Component 1 | . 1 . Scanalyzer . | . . . Garrison Access Hacks . | . . . Unauthorized Hacks . | . . . Terminals . | . . . Fabricators . | . . . Repair Stations . | . . . Recycling Units . | . . . Scanalyzers . | . . . Garrison Access . | . . . Data Cores Recovered . | . . . Used . | . . . Hacking Detections 1 | . 1 . Full Trace Events . | . . . Feedback Events . | . . . Feedback Blocked . | . . . Robot Schematics Acquired . | . . . Robots Built . | . . . Authchips . | . . . Time . | . . . Total Robot Build Rating . | . . . Part Schematics Acquired . | . . . Parts Built . | . . . Authchips . | . . . Time . | . . . Total Part Build Rating . | . . . Parts Repaired . | . . . Time . | . . . Parts Recycled 1 | . 1 . Recycled Matter . | . . . Retrieved Matter . | . . . Retrieved Components . | . . . Parts Scanalyzed . | . . . Part Schematics Acquired . | . . . Parts Damaged . | . . . Bothacking | -11 -10 -9 ------------ Run | Yrd Mat Mat Used RIF Installer . | . . . Robots Hacked . | . . . Non-combat . | . . . Combat . | . . . Robot Hacks Applied . | . . . Relay Couplers Released . | . . . Fabnet Peak Effective % . | . . . Robots Rewired . | . . . Allies Hacked . | . . . Hacks Repelled . | . . . Allies | -11 -10 -9 -------- Run | Yrd Mat Mat Total Allies . | . . . Largest Group . | . . . Highest-Rated Group . | . . . Highest-Rated Ally . | . . . Total Orders . | . . . Ally Attacks . | . . . Total Damage . | . . . Kills . | . . . Allies Corrupted . | . . . Allies Melted . | . . . Intel | -11 -10 -9 ------- Run | Yrd Mat Mat Robot Analysis Total . | . . . Derelict Logs Recovered . | . . . Drone Launches . | . . . Drone Recoveries . | . . . Exploration | -11 -10 -9 ------------- Run | Yrd Mat Mat Turns Passed 750 | 139 410 201 Spaces Moved 703 | 93 463 147 Core 45 | 17 . 28 Treads . | . . . Legs . | . . . Wheels 608 | 76 463 69 Hover 50 | . . 50 Flight . | . . . Fastest Speed 50 | 50 80 50 Average Speed 76 | 74 80 68 Slowest Speed 90 | 80 80 90 Overloaded Moves . | . . . Propulsion Burnouts . | . . . Robots Hopped . | . . . Cave-ins Triggered . | . . . Exploration Rate (%) 20 | 5 43 14 Regions Visited 2 Branch Regions . Pre-discovered Areas . | . . . Known Exits Taken . | . . . Unknown Exits Taken 2 | 1 1 . Scrap Searched . | . . . Spaces Dug . | . . . Terrain Destroyed 17 | . 17 . Melee . | . . . Projectile . | . . . AOE 17 | . 17 . Terrain Rammed . | . . . Walls Destroyed . | . . . Machines Disabled . | . . . Actions | -11 -10 -9 --------- Run | Yrd Mat Mat Total 843 | 154 489 200 Wait 46 | 43 2 1 Move 701 | 92 462 147 Hop . | . . . Pick Up 22 | 5 10 7 Fast Attach 2 | . 2 . Attach 20 | 4 5 11 Detach 1 | . . 1 Swap . | . . . Drop 3 | . 1 2 Fire 44 | 10 7 27 Melee . | . . . Ram 4 | . . 4 Kick . | . . . Crush . | . . . Escape Stasis . | . . . Rewire . | . . . Trap . | . . . Miscellaneous . | . . . Route ------- -11/Scrapyard -10/Materials (discovered 2 exits: [*Mat] / [*Min]) -9/Materials History --------- Turn | Location | Event 2 | -11/Scrapyard | Met Revision 17 113 | -11/Scrapyard | Discovered new exit (range 8) 140 | -11/Scrapyard | Entered Materials 280 | -10/Materials | Discovered new exit (range 16) 306 | -10/Materials | Lost 3 parts (1p1n1w) 311 | -10/Materials | Build established: Mutant 456 | -10/Materials | Discovered new exit (range 12) 550 | -10/Materials | Entered another Materials area 550 | -9/Materials | Evolved 2 slots: Propulsion x1, Utility x1 661 | -9/Materials | Core integrity fell below 50% 693 | -9/Materials | Lost 8 parts (1p3n1u3w) 699 | -9/Materials | Core integrity fell below 20% 751 | -9/Materials | Destroyed by S-10 Pest with Light Assault Rifle Last Messages --------------- 00697_ K-01 Serf collects debris. 00704_ Imp. Hover Unit destroyed. 00704_ M-13 Machinist repairs G-34 Mercenary. 00710_ Acquired Arm. Wheel. 00715_ Imp. Hover Unit destroyed. 00739_ U-05 Engineer builds a Wall. 00740_ K-01 Serf collects debris. 00741_ The unstable cave ceiling collapses. 00741_ U-05 Engineer suffers critical hit (Destroy). 00741_ U-05 Engineer destroyed. 00745_ Ion Engine destroyed. 00745_ R-06 Scavenger collects Welding Torch. 00746_ S-10 Pest destroyed. 00747_ R-06 Scavenger collects Structural Scanner. 00747_ K-01 Serf collects debris. 00748_ Acquired Lgt. Ion Engine. 00749_ K-01 Serf collects debris. 00750_ R-06 Scavenger collects Terrain Scanner. 00751_ K-01 Serf collects debris. [Achievement: First Step to Greatness] Map ----- +----------------------------------------------------+ | #T ## # #???????????????????????????? | | ### ####+######+#####???????????????????????????? | | #????? ??????????????????????? | | #????? ????????????????????? | | % #????? ????????????????????? | | ##+############## #???? ?????????????????????? | | #????# #???? ?????????????????????? | | """ #????# #???? ?????????????????????? | | R" #????# #???? ?????????????????????? | | """ #????# #???? ??????????????????????? | | #????# #???? ??????????????????????? | | #????# #???? ?????#????????????????? | | ################# #####+#####%###??????????????? | | ??? #??????????????? | | ??? +??????????????? | | ??? #??????????????? | | ????##+#############/### ########??????????????? | | ?????????????# #gYgT = #??????????????? | | ????????????## # g ## a###????????????? | | ????????????# """ # # ##???????????? | | ????????????## """ = # r#? # #???????????? | | ?????????????# """ # %## ##???????????? | | ?????????????# # rs# ????????????? | | ?????????????# "T" # kk# # ??????????? | | ?????????????# """ # s #?????????????? | | ?????????????########### @a #?????????????? | | ???????????????????????# +?????????????? | | ???????????????????????# #?????????????? | | ???????????????????????# #?????????????? | | ???????????????????????# """ #?????????????? | | ???????????????????????+ """ #?????????????? | | ???????????????????????# """ #?????????????? | | ???????????????????????# #?????????????? | | ??????????????????????? ?? k#?????????????? | | ??????????????????????? ""???? ????????????? | | ???????????????????????# k ""????? ????????????? | | ???????????????????????# ""????????????????????? | | ???????????????????????# ?????????????????????? | | ???????????????????????? ?????????????????????? | | ???????????????????????? "?????????????????????? | | ???????????????????????? ??????????????????????? | | ?????????????????????????????????????????????????? | | ?????????????????????????????????????????????????? | | ?????????????????????????????????????????????????? | | ?????????????????????????????????????????????????? | | ?????????????????????????????????????????????????? | | ?????????????????????????????????????????????????? | | ?????????????????????????????????????????????????? | | ?????????????????????????????????????????????????? | | ?????????????????????????????????????????????????? | +----------------------------------------------------+ Best States ------------- Heat Dissipation 28 Energy Generation 10 Energy Capacity 250 Matter Stores 300 Matter Capacity 300 Sight Range 16 Terrain Scan Density 10 Core Shielding 20 Propulsion Shielding 33 Weapon Shielding 33 Evasion (%) 54 Item Schematics ----------------- None Robot Schematics ------------------ None Fabricated ------------ Nothing Alien Tech Used ----------------- None Achievements -------------- Crack Shot First Step to Greatness It's Just You Challenges ------------ None Game ------ Seed SubdwellerNullGreatsword Manual? 0 Play Time 00:23:21 Cumulative 0.3 hours Start 2024.12.07 @ 15:38:42 End 2024.12.07 @ 16:15:43 Sessions 3 Manual Loads 0 Difficulty Rogue Special Mode None Game No. 1 Rogue 1 Adventurer 0 Explorer 0 Win Type - Total 0 Types 0/0/0/0/0/0/0/0/0 Lore% 0 Gallery% 1 Achievement% 1 Wizard Run 0 Options --------- Layout 0 ASCII 0 Keyboard 0 Movement Arrows Keybinds 0 Fullscreen 1 Font 18/SmallcapsGlow Map View 76x50 Zoom Use 0% Tactical HUD 1 Map Filters NONE Filters NONE Steam 1 RUN: 459276c4-7faa-4407-b339-450881ce7ece